Cogmind - Beta 13 @@@ ROGUE MODE // 2024.06.01 @ 20:41:52 Player: Comet Result: Self-destructed Performance ------------- Evolutions (3) 1500 Regions Visited (6) 1200 Robots Destroyed (97) 485 Value Destroyed (2456) 2456 Prototype IDs (27) 540 Alien Tech Used (0) 0 Bonus (545) 545 TOTAL SCORE: 6726 Bonus ------- High Alert Combat Kills 254 Aligned with FarCom 300 Friendly Fire -9 Cogmind --------- Core Integrity 587/700 Matter 219/300 Energy 6/100 System Corruption 6% Temperature Cool (0) Movement Core (250) Ox4 Location -7/Factory Parts ------- > --- POWER (1) -------- (None) > --- PROPULSION (4) --- Combat Airjet Cesium-ion Thruster > --- UTILITY (6) ------ Medium Storage Unit Improved Signal Interpreter Improved Terrain Scanner Hacking Suite Recalibrator > --- WEAPON (2) ------- Longsword +1 > --- INVENTORY (10) --- Faulty Aerolev Unit Improved Sensor Array Improved Signal Interpreter Improved Melee Analysis Suite Improved Melee Analysis Suite Transmission Jammer Reaction Control System Improved Light Armor Plating Improved Medium Armor Plating Improved Medium Armor Plating Peak State ------------ > --- POWER ------------ Light Nuclear Core > --- PROPULSION ------- Airjet Aerolev Unit Combat Airjet Cesium-ion Thruster > --- UTILITY ---------- Medium Storage Unit Improved Signal Interpreter Improved Terrain Scanner Hacking Suite Hacking Suite System Shield > --- WEAPON ----------- High-powered Shotgun Longsword +1 > --- INVENTORY -------- Aerolev Unit Improved Sensor Array Improved Signal Interpreter Improved Melee Analysis Suite Transmission Jammer Hardened Light Armor Plating Improved Light Armor Plating Improved Medium Armor Plating Improved Medium Armor Plating [Rating: 48] Favorites ----------- Power Light Nuclear Core Engine Light Angular Momentum Engine Power Core Light Nuclear Core Propulsion Aluminum Leg Treads Light Treads Leg Aluminum Leg Wheel Compact Wheel Hover Unit Combat Airjet Flight Unit Cesium-ion Thruster Utility Small Storage Unit Device Improved Heat Sink Storage Small Storage Unit Processor Improved Signal Interpreter Hackware Hacking Suite Protection Hardened Medium Armor Plating Weapon Medium Laser Energy Gun Medium Laser Ballistic Gun High-powered Shotgun Ballistic Cannon Assault Cannon Launcher Rocket Launcher Slashing Weapon Longsword +1 Build | -11 -10 -10 -10 -9 -8 -7 ------- Run | Yrd Mat Min Exi Min Mat Fac Slots Evolved 6 | . . . . . 4 2 Power . | . . . . . . . Propulsion 2 | . . . . . 2 . Utility 4 | . . . . . 2 2 Weapon . | . . . . . . . Parts Attached 115 | 7 16 1 . 9 57 25 Power 10 | 1 3 . . 2 1 3 Engine 5 | 1 1 . . 2 . 1 Core 5 | . 2 . . . 1 2 Reactor . | . . . . . . . Propulsion 38 | 2 5 1 . . 23 7 Treads 11 | 2 3 . . . 6 . Leg 10 | . 2 1 . . 7 . Wheel 3 | . . . . . 3 . Hover 9 | . . . . . 5 4 Flight 5 | . . . . . 2 3 Utility 27 | 1 2 . . 2 10 12 Device 12 | . 2 . . 1 3 6 Storage 4 | 1 . . . 1 1 1 Processor 2 | . . . . . 2 . Hackware 3 | . . . . . 1 2 Protection 6 | . . . . . 3 3 Artifact . | . . . . . . . Weapon 40 | 3 6 . . 5 23 3 Energy Gun 13 | 1 5 . . 3 4 . Energy Cannon . | . . . . . . . Ballistic Gun 8 | 2 . . . . 5 1 Ballistic Cannon 2 | . . . . . 2 . Launcher 12 | . 1 . . 2 7 2 Special Weapon . | . . . . . . . Impact Weapon . | . . . . . . . Slashing Weapon 5 | . . . . . 5 . Piercing Weapon . | . . . . . . . Special Melee Weapon . | . . . . . . . Unidentified Prototypes 4 | . . . . . 3 1 Parts Lost 12 | . 1 . . . 5 6 Power 1 | . . . . . . 1 Propulsion 4 | . . . . . 2 2 Utility 5 | . 1 . . . 2 2 Weapon 2 | . . . . . 1 1 Highest Loss Streak 4 | . 1 . . . 1 4 To Critical Strikes . | . . . . . . . Average Slot Usage (%) 98 | . 99 100 100 100 98 91 Engine 4 | . 5 . . 13 5 . Core 5 | . 8 14 14 . 3 6 Treads 10 | . 18 . . . 11 1 Leg 15 | . 9 28 28 28 17 . Hover 5 | . . . . . 6 17 Device 10 | . 13 14 14 14 8 9 Storage 10 | . 14 14 14 14 9 5 Processor 5 | . . . . . 8 7 Hackware 3 | . . . . . 2 18 Protection 3 | . . . . . 6 2 Energy Gun 11 | . 23 28 28 25 4 . Ballistic Gun 2 | . 4 . . . 3 . Launcher 1 | . . . . 2 2 2 Slashing Weapon 4 | . . . . . 6 7 Naked Turns . | . . . . . . . Heaviest Build 35 | 12 15 15 15 23 35 28 Greatest Support 60 | 40 40 20 20 20 60 40 Greatest Overweight (x) 3 | . . . . 1 3 . Average Overweight (x) . | . . . . . . . Largest Inventory Capacity 10 | 8 8 8 8 8 10 10 Average Capacity 8 | 7 8 8 8 8 8 8 Most Carried 10 | 4 8 8 8 8 10 10 Average Carried 7 | 2 7 8 7 7 7 8 Final Capacity 10 | 8 8 8 8 8 10 10 Final Carried 10 | 4 8 8 8 8 10 10 Class Distribution -------------------- 32% | Mutant 28% | Scavenger-Assassin 19% | Scavenger-Mutant 7% | Scavenger-Skirmisher 7% | Hacker-Scout Dominant Class ---------------- Mutant | -10/Materials Mutant | -10/Mines Mutant | -10/Exiles Scavenger-Mutant | -9/Mines Scavenger-Assassin | -8/Materials Hacker-Scout | -7/Factory Resources | -11 -10 -10 -10 -9 -8 -7 ----------- Run | Yrd Mat Min Exi Min Mat Fac Matter Collected 1791 | 282 228 10 . 150 971 150 Remotely 58 | . 58 . . . . . Salvage Created 3574 | 114 937 88 . 180 1925 330 Parts 197 | 4 46 4 . 13 118 12 Haulers Intercepted 6 | . 2 . . . 4 . Recyclers Shooed 5 | 1 1 . . 2 1 . Parts Field Recycled . | . . . . . . . Retrieved Matter . | . . . . . . . Parts Self-Destructed . | . . . . . . . Prevented . | . . . . . . . Kills | -11 -10 -10 -10 -9 -8 -7 ------- Run | Yrd Mat Min Exi Min Mat Fac Combat Hostiles Destroyed 63 | . 13 2 . 5 34 9 Melee 30 | . . . . . 21 9 Guns 16 | . 10 1 . 1 4 . AOE 15 | . 2 . . 4 9 . Classes Destroyed 13 | 2 5 . . 2 3 1 Worker 9 | . 1 1 . . 7 . Tunneler 2 | 1 . . . 1 . . Hauler 6 | . 2 . . . 4 . Recycler 9 | 1 2 . . 1 5 . Operator 2 | . 1 . . . 1 . Watcher 6 | . 2 . . . 4 . Swarmer 19 | . . . . 3 10 6 Grunt 28 | . 13 2 . 1 12 . Brawler 6 | . . . . 1 3 2 Duelist 1 | . . . . . . 1 Protector 1 | . . . . . 1 . Sentry 7 | . . . . . 7 . Hunter 1 | . . . . . 1 . Best Kill Streak 5 | 2 2 2 . 5 5 4 Combat Bots Only 4 | . 2 2 . 3 4 4 Max Kills in Single Turn 3 | 1 2 1 . 2 3 1 Gunslinging . | . . . . . . . Exploded 3 | . 2 . . 2 3 . Melee 1 | . . . . . 1 1 Uniques/NPCs Destroyed . | . . . . . . . Combat | -11 -10 -10 -10 -9 -8 -7 -------- Run | Yrd Mat Min Exi Min Mat Fac Hostile Shots Fired 233 | . 73 18 . 7 95 40 Missed 63 | . 18 4 . 1 31 9 Damage Taken 2792 | . 740 191 . 122 1033 706 Core 485 | . 142 76 . 8 146 113 Absorbed by Shields . | . . . . . . . Regen/Repaired (Parts) 32 | . 32 . . . . . Core Remaining (%) 60 | 100 . . . 9 73 . Volleys Fired 169 | 6 91 10 . 9 52 1 Largest 2 | 2 2 2 . 2 2 1 Hottest 125 | 40 100 100 . 100 125 33 Shots Fired 304 | 12 180 20 . 15 76 1 Gun 274 | 12 179 20 . 9 54 . Cannon 8 | . . . . . 8 . Launcher 22 | . 1 . . 6 14 1 Special . | . . . . . . . Kinetic 110 | 12 58 . . . 40 . Thermal 166 | . 115 20 . 9 22 . Explosive 22 | . 1 . . 6 14 1 Electromagnetic 6 | . 6 . . . . . Robot Hit Streak 12 | 2 9 12 . 5 8 . Robot Miss Streak 6 | 2 4 3 . 3 6 . Penetration Max . | . . . . . . . Secondary Targets . | . . . . . . . Shots Hit Robots 238 | 4 90 14 . 6 98 26 Core Hits 147 | 6 43 5 . 14 66 13 Critical Kills . | . . . . . . . Critical Parts Destroyed . | . . . . . . . Critical Strikes 20 | . 5 1 . . 7 7 Burn 9 | . 5 1 . . 3 . Sever 11 | . . . . . 4 7 Melee Attacks 114 | . . . . . 81 33 Impact . | . . . . . . . Slashing 114 | . . . . . 81 33 Piercing . | . . . . . . . Sneak Attacks 13 | . . . . . 13 . Combat Hostiles . | . . . . . . . Follow-up Attacks . | . . . . . . . Damage Inflicted 7624 | 74 1072 190 . 335 4967 986 Guns 1900 | 74 1017 190 . 75 544 . Cannons 75 | . . . . . 75 . Explosions 1183 | . 50 . . 260 873 . Melee 4461 | . . . . . 3475 986 Ramming 5 | . 5 . . . . . Kinetic 724 | 74 227 . . . 423 . Thermal 1174 | . 713 190 . 75 196 . Explosive 1183 | . 50 . . 260 873 . Electromagnetic 77 | . 77 . . . . . Impact . | . . . . . . . Slashing 4461 | . . . . . 3475 986 Piercing . | . . . . . . . Highest Corruption 6 | . . . . . 4 6 Average Corruption 3 | . . . . . 4 3 Corruption Purged . | . . . . . . . Corruption Blocked . | . . . . . . . Effects 56 | . . . . . 53 3 Message Errors 20 | . . . . . 19 1 Matter Fused 10 | . . . . . 10 . Heat Flow Errors 5 | . . . . . 4 1 Energy Discharges 7 | . . . . . 6 1 Data Loss (minor) 6 | . . . . . 6 . Data Loss (major) 2 | . . . . . 2 . Misfires 2 | . . . . . 2 . Alerts 3 | . . . . . 3 . Weapon Failures 1 | . . . . . 1 . Overload Shots . | . . . . . . . Overflow Damage 403 | . . . . . 388 15 Projectiles . | . . . . . . . Explosions 51 | . . . . . 51 . Melee 352 | . . . . . 337 15 Knockbacks . | . . . . . . . Impact . | . . . . . . . Kinetic . | . . . . . . . Secondary . | . . . . . . . Self-Inflicted Damage 130 | . . . . 48 50 32 Shots 6 | . . . . 3 2 1 Rammed . | . . . . . . . Targets Rammed 2 | . 2 . . . . . Kicked 2 | . 2 . . . . . Crushed . | . . . . . . . Highest Temperature 242 | . 104 132 . 27 242 103 Average Temperature 34 | . 29 54 . 15 38 53 Received Heat Transfer 948 | . 435 108 . 18 387 . Siege Activations . | . . . . . . . Robots Corrupted . | . . . . . . . Combat Hostiles . | . . . . . . . Parts Fried 2 | . 2 . . . . . Impact Corruptions . | . . . . . . . Robots Melted 2 | . 1 1 . . . . Combat Hostiles 2 | . 1 1 . . . . Parts Melted 12 | . 7 2 . 1 2 . Heat Transferred 3961 | . 2444 629 . 222 666 . Parts Sabotaged . | . . . . . . . Parts Stolen . | . . . . . . . Parts Stripped . | . . . . . . . Power Chain Reactions . | . . . . . . . Alert | -11 -10 -10 -10 -9 -8 -7 ------- Run | Yrd Mat Min Exi Min Mat Fac Peak Influence 901 | 10 155 62 . 192 901 410 Initial 406 | . 6 7 . . . 406 Average 248 | 4 47 33 . 103 358 323 Maximum Alert Level 3 | . . . . . 3 2 Low Security (%) 58 | 100 100 100 . 100 43 2 Level 1 13 | . . . . . 15 50 Level 2 17 | . . . . . 22 47 Level 3 10 | . . . . . 19 . Level 4 . | . . . . . . . Level 5 . | . . . . . . . High Security . | . . . . . . . Max Security . | . . . . . . . Squads Dispatched 13 | . 3 . . . 6 4 Investigation 4 | . 2 . . . 2 . Extermination 1 | . . . . . . 1 Reinforcement 3 | . 1 . . . 2 . Assault 2 | . . . . . 2 . Garrison 3 | . . . . . . 3 Intercept . | . . . . . . . Searches Triggered . | . . . . . . . Construction Impeded . | . . . . . . . Haulers Reinforced . | . . . . . . . Active Scanning Responses . | . . . . . . . Cargo Convoy Interrupts . | . . . . . . . Stealth | -11 -10 -10 -10 -9 -8 -7 --------- Run | Yrd Mat Min Exi Min Mat Fac Distress Signals 9 | . 2 . . . 7 . Communications Jammed . | . . . . . . . Distress Signals . | . . . . . . . Times Spotted 101 | . 22 2 . 4 62 11 Peak Tracking Total 6 | . 3 2 . 2 6 5 Tactical Retreats 11 | . . . . . 11 . Traps | -11 -10 -10 -10 -9 -8 -7 ------- Run | Yrd Mat Min Exi Min Mat Fac Traps Triggered 8 | . 4 . . . 3 1 Indirectly . | . . . . . . . Trap Hack Attempts . | . . . . . . . Triggered . | . . . . . . . Disarmed . | . . . . . . . Reprogrammed . | . . . . . . . Reused . | . . . . . . . Traps Extracted . | . . . . . . . Installed . | . . . . . . . Triggered 1 | . . . . 1 . . Machines | -11 -10 -10 -10 -9 -8 -7 ---------- Run | Yrd Mat Min Exi Min Mat Fac Machines Disabled 6 | . 1 . . 1 4 . Max in Single Turn 1 | . 1 . . 1 1 . Machines Repaired . | . . . . . . . Machines Dismantled . | . . . . . . . Machines Sabotaged . | . . . . . . . Overloaded Fab Kills . | . . . . . . . Hacking | -11 -10 -10 -10 -9 -8 -7 --------- Run | Yrd Mat Min Exi Min Mat Fac Machines Accessed 11 | . 3 . 1 . 6 1 Terminals 6 | . 2 . . . 3 1 Fabricators . | . . . . . . . Repair Stations 1 | . 1 . . . . . Recycling Units 1 | . . . . . 1 . Scanalyzers 2 | . . . . . 2 . Garrison Access . | . . . . . . . Total Hacks 31 | . 9 . 1 . 19 2 Successful 16 | . 3 . 1 . 11 1 Failed 15 | . 6 . . . 8 1 Catastrophic 3 | . 1 . . . 1 1 Database Lockouts . | . . . . . . . Manual 17 | . 5 . 1 . 10 1 Terminals 17 | . 5 . . . 10 2 Fabricators . | . . . . . . . Repair Stations 4 | . 4 . . . . . Recycling Units 1 | . . . . . 1 . Scanalyzers 8 | . . . . . 8 . Garrison Access . | . . . . . . . Terminal Hacks 6 | . 1 . 1 . 3 1 Part Schematic 1 | . . . . . 1 . Branch Access Points 1 | . 1 . . . . . Terminal Index 1 | . . . . . 1 . Recycling Unit Index 1 | . . . . . 1 . Hauler Manifests 1 | . . . . . . 1 Derelict Proto ID Bank 1 | . . . 1 . . . Fabricator Hacks . | . . . . . . . Repair Station Hacks 2 | . 2 . . . . . Scan Component 1 | . 1 . . . . . Repair 1 | . 1 . . . . . Recycling Unit Hacks 1 | . . . . . 1 . Report Inventory 1 | . . . . . 1 . Scanalyzer 7 | . . . . . 7 . Insert Component 3 | . . . . . 3 . Analyze 4 | . . . . . 4 . Garrison Access Hacks . | . . . . . . . Unauthorized Hacks . | . . . . . . . Terminals . | . . . . . . . Fabricators . | . . . . . . . Repair Stations . | . . . . . . . Recycling Units . | . . . . . . . Scanalyzers . | . . . . . . . Garrison Access . | . . . . . . . Data Cores Recovered . | . . . . . . . Used . | . . . . . . . Hacking Detections 9 | . 3 . . . 5 1 Full Trace Events 1 | . 1 . . . . . Feedback Events . | . . . . . . . Feedback Blocked . | . . . . . . . Robot Schematics Acquired . | . . . . . . . Robots Built . | . . . . . . . Authchips . | . . . . . . . Time . | . . . . . . . Total Robot Build Rating . | . . . . . . . Part Schematics Acquired 4 | . . . . . 4 . Parts Built . | . . . . . . . Authchips . | . . . . . . . Time . | . . . . . . . Total Part Build Rating . | . . . . . . . Parts Repaired 1 | . 1 . . . . . Time 38 | . 38 . . . . . Parts Recycled . | . . . . . . . Recycled Matter . | . . . . . . . Retrieved Matter . | . . . . . . . Retrieved Components . | . . . . . . . Parts Scanalyzed 3 | . . . . . 3 . Part Schematics Acquired 3 | . . . . . 3 . Parts Damaged . | . . . . . . . Bothacking | -11 -10 -10 -10 -9 -8 -7 ------------ Run | Yrd Mat Min Exi Min Mat Fac Used RIF Installer . | . . . . . . . Robots Hacked . | . . . . . . . Non-combat . | . . . . . . . Combat . | . . . . . . . Robot Hacks Applied . | . . . . . . . Relay Couplers Released . | . . . . . . . Fabnet Peak Effective % . | . . . . . . . Robots Rewired . | . . . . . . . Allies Hacked . | . . . . . . . Hacks Repelled . | . . . . . . . Allies | -11 -10 -10 -10 -9 -8 -7 -------- Run | Yrd Mat Min Exi Min Mat Fac Total Allies . | . . . . . . . Largest Group . | . . . . . . . Highest-Rated Group . | . . . . . . . Highest-Rated Ally . | . . . . . . . Total Orders . | . . . . . . . Ally Attacks . | . . . . . . . Total Damage . | . . . . . . . Kills . | . . . . . . . Allies Corrupted . | . . . . . . . Allies Melted . | . . . . . . . Intel | -11 -10 -10 -10 -9 -8 -7 ------- Run | Yrd Mat Min Exi Min Mat Fac Robot Analysis Total . | . . . . . . . Derelict Logs Recovered 1 | . . . . 1 . . Drone Launches . | . . . . . . . Drone Recoveries . | . . . . . . . Exploration | -11 -10 -10 -10 -9 -8 -7 ------------- Run | Yrd Mat Min Exi Min Mat Fac Turns Passed 7829 | 117 1675 290 292 572 4049 834 Spaces Moved 4404 | 48 873 214 241 377 2107 544 Core 3 | 3 . . . . . . Treads 1412 | 45 530 . . . 791 46 Legs 2239 | . 343 214 241 377 1064 . Wheels 106 | . . . . . 106 . Hover 505 | . . . . . 146 359 Flight 139 | . . . . . . 139 Fastest Speed 32 | 50 120 120 120 120 58 32 Average Speed 125 | 153 144 120 120 138 133 58 Slowest Speed 280 | 160 160 120 120 190 280 160 Overloaded Moves . | . . . . . . . Propulsion Burnouts . | . . . . . . . Robots Hopped . | . . . . . . . Cave-ins Triggered . | . . . . . . . Exploration Rate (%) 51 | 4 94 57 63 63 74 7 Regions Visited 6 Branch Regions 3 Pre-discovered Areas 1 | . . . . 1 . . Known Exits Taken 2 | . 1 . . . 1 . Unknown Exits Taken 4 | 1 . 1 1 1 . . Scrap Searched 3 | . . 1 . 2 . . Spaces Dug 20 | . . . . . 11 9 Terrain Destroyed 243 | . 27 . . 48 159 9 Melee 16 | . . . . . 11 5 Projectile 2 | . . . . . 2 . AOE 225 | . 27 . . 48 146 4 Terrain Rammed . | . . . . . . . Walls Destroyed . | . . . . . . . Machines Disabled . | . . . . . . . Actions | -11 -10 -10 -10 -9 -8 -7 --------- Run | Yrd Mat Min Exi Min Mat Fac Total 6296 | 79 1118 227 244 412 3187 1029 Wait 1372 | 14 116 2 2 7 834 397 Move 4398 | 47 872 213 240 376 2106 544 Hop . | . . . . . . . Pick Up 42 | 4 9 . 1 3 16 9 Fast Attach 60 | 7 11 . . 4 25 13 Attach 16 | . 1 . . . 9 6 Detach 4 | . . . . . 4 . Swap 40 | . 4 1 . 5 24 6 Drop 79 | 1 12 1 1 8 36 20 Fire 169 | 6 91 10 . 9 52 1 Melee 114 | . . . . . 81 33 Ram . | . . . . . . . Kick 2 | . 2 . . . . . Crush . | . . . . . . . Escape Stasis . | . . . . . . . Rewire . | . . . . . . . Trap . | . . . . . . . Miscellaneous . | . . . . . . . Route ------- -11/Scrapyard -10/Materials (discovered 5 exits: [*Mat x3] / *Min / [*Sub]) -10/Mines (discovered 3 exits: [*Mat x2] / *Exi) -10/Exiles -9/Mines -8/Materials (discovered 2 exits: *Fac x2) -7/Factory History --------- Turn | Location | Event 12 | -11/Scrapyard | Discovered new exit (range 15) 118 | -11/Scrapyard | Entered Materials 302 | -10/Materials | Build established: Mutant 589 | -10/Materials | Discovered new exit (range 5) 1088 | -10/Materials | Core integrity fell below 50% 1173 | -10/Materials | Discovered new exit (range 11) 1379 | -10/Materials | Discovered new exit (range 7) 1544 | -10/Materials | Identified exit to Mines 1692 | -10/Materials | Repaired Lgt. Nuclear Core 1752 | -10/Materials | Discovered new exit (range 8) 1793 | -10/Materials | Entered Mines 1858 | -10/Mines | Discovered new exit (range 10) 1947 | -10/Mines | Core integrity fell below 20% 2053 | -10/Mines | Discovered new exit (range 12) 2077 | -10/Mines | Deemed a non-threat by the Exiles lab entrance 2077 | -10/Mines | Discovered new exit (range 5) 2083 | -10/Mines | Entered Exiles 2112 | -10/Exiles | Met 8R-AWN 2134 | -10/Exiles | Met EX-HEX 2172 | -10/Exiles | Met EX-BIN 2199 | -10/Exiles | Aligned with FarCom system 2200 | -10/Exiles | Given EX-Vault access code 2229 | -10/Exiles | Opened EX-Vault 2238 | -10/Exiles | Found Longsword +1 2261 | -10/Exiles | Warned to stay clear of 0b10 Research branches 2279 | -10/Exiles | Exiles lab attacked by MAIN.C 2362 | -10/Exiles | Discovered new exit (range 10) 2375 | -10/Exiles | Left Exiles lab with Longsword +1 2375 | -10/Exiles | Entered Mines 2384 | -9/Mines | Met a Derelict bent on vengeance 2564 | -9/Mines | Assembled infested the area 2569 | -9/Mines | Assisted by a Guerilla fighting off Assembled 2662 | -9/Mines | Found a hidden stash of uninstalled traps 2798 | -9/Mines | Learned location of Storage (-7) 2815 | -9/Mines | Discovered new exit (range 6) 2878 | -9/Mines | Build established: Scavenger-Mutant 2890 | -9/Mines | Received a Rocket Launcher from a helpful Derelict 2947 | -9/Mines | Entered Materials 2947 | -8/Materials | Evolved 4 slots: Propulsion x2, Utility x2 3253 | -8/Materials | Build established: Scavenger-Skirmisher 3869 | -8/Materials | Build established: Scavenger-Assassin 4161 | -8/Materials | Discovered new exit (range 14) 5382 | -8/Materials | Discovered new exit (range 16) 6147 | -8/Materials | First assault squad dispatched 6185 | -8/Materials | Build established: Scavenger-Mutant 6453 | -8/Materials | Identified exit to Factory 6996 | -8/Materials | Entered Factory 6996 | -7/Factory | Evolved 2 slots: Utility x2 7518 | -7/Factory | Build established: Hacker-Scout 7555 | -7/Factory | Garrison activated, responded to threat 7830 | -7/Factory | Self-destructed Last Messages --------------- Dropped Lgt. Nuclear Core. K-01 Serf collects debris. Destroyed VTOL Module. Lgt. Nuclear Core destroyed. S-27 Virus destroyed. B-48 Gladiator Rnf. Deuterium Engine severed. B-48 Gladiator Lgt. Treads severed. Hacking Suite destroyed. System corrupted by crushing effect (+3). B-48 Gladiator destroyed. K-01 Serf collects debris. S-27 Virus Lgt. Nuclear Core severed. K-01 Serf collects debris. S-27 Virus destroyed. K-01 Serf collects debris. Airjet destroyed. K-01 Serf collects debris. L-41 Fighter Microactuators severed. Aerolev Unit destroyed. ALERT: Rogue bot located, Programmers report to Factory Zone 3Q. Map ----- +----------------------------------------------------+ | | | | | ?????????????????????????????????????????????????? | | ?????????????????????????????????????????????????? | | ?????????????????????????????????????????????????? | | ?????????????????????????????????????????????????? | | ?????????????????????????????????????????????????? | | ?????????????????????????????????????????????????? | | ?????????????????????????????????????????????????? | | ?????????????????????????????????????????????????? | | ?????????????????????????????????????????????????? | | ?????????????????????###?????????????#???????????? | | ?????????????????????? ??#?#????#???????????????? | | ???????????????? ??? #??#????#????????????????? | | ????????????????? ? #??#??##?###??#?#####????/ | | ???????????????? #?####??#??????? ? ? | | ????????????????""" """ #???###??#?? ?? ? | | ?????????????????"" """ #????????##??? # ""G"" | | ????????????#?? """ """ #???#??????????# " " | | ????????????#?? ###########????+ " " | | ???????????#??? """ """ # #????# | | ???????????##???""" """ # "" # ?#!!! | | ??????????????# """ """ # "T #????#!!! | | ?????????"????# [%=# "" # ?? #!!! | | ??????????????# """ """%#= #??#?# | | ??????????????? """ """=#@%k """ ##??## | | ??????????????# """ """%l*!! """ ##?### """" | | ??????????? ## *[#=* *=""" #?## # """" | | ???????????? ?#####+##+######+######## # """" | | ???????????????#??# w %* """" | | ???????????????#??# """" | | ?????????? ??? """" | | ????????????????### """" | | ??????????????????# | | ???????????????#??# ######### | | ??????????????????# #???#??## | | ???????????? ???? #??#??#?# !!! | | ???????????????? #??? ???# !!! | | ?????????????????? #? ????# !! | | ?????????????????? # ?"?? ?# | | ??????????????????? #???"???# | | ?????????????????????#+### #??????#####+###### | | ????????????????????? ??# ???? ??# ## | | ?????????????????????????? ?????"?# !! #? | | ???????????????????????????? ?? ????# !! #? | | ??????????????????????????????????????#!!! ## | | ??????????????????????????????????????# ## | | ??????????????????????????????????????# #? | | ??????????????????????????????????????# ## | | ??????????????????????????????????????# #? | +----------------------------------------------------+ Best States ------------- Heat Dissipation 45 Energy Generation 18 Energy Capacity 265 Matter Stores 300 Matter Capacity 300 Sight Range 16 Terrain Scan Range 16 Terrain Scan Density 10 Armor Coverage 225 Evasion (%) 63 Recoil Reduction 3 Offensive Hacking 20 Defensive Hacking 10 Item Schematics ----------------- Cmb. Airjet | -8/Materials | Scanalyzed Hacking Suite | -8/Materials | Hacked System Shield | -8/Materials | Scanalyzed Imp. Flight Unit | -8/Materials | Scanalyzed Robot Schematics ------------------ None Fabricated ------------ Nothing Alien Tech Used ----------------- None Achievements -------------- None Challenges ------------ None Game ------ Seed ReinforcedMultinovaMount Manual? 0 Play Time 01:11:27 Cumulative 26.6 hours Start 2024.06.01 @ 19:29:12 End 2024.06.01 @ 20:41:52 Sessions 1 Manual Loads 0 Difficulty Rogue Special Mode None Game No. 14 Rogue 14 Adventurer 0 Explorer 0 Win Type - Total 0 Types 0/0/0/0/0/0/0/0/0 Lore% 16 Gallery% 24 Achievement% 23 Wizard Run 0 Options --------- Layout 0 ASCII 0 Keyboard 0 Movement Mouse Keybinds 0 Fullscreen 1 Font 18/SmallcapsGlow Map View 76x50 Zoom Use 2% Tactical HUD 0 Map Filters NONE Filters NONE Steam 1 RUN: 5573aed1-91cb-4f04-b13d-b23b25bd1764